bitfinex-derivatives/quotes_SOLF0:USTF0_20220106
["timestamp","ask_amount","ask_price","bid_price","bid_amount"]
[1641446390026,8.64351676,150.4,150.33,27.66479]
[1641446390426,14.02051676,150.4,150.33,27.66479]
[1641446390626,4.0,150.39,150.29,34.30820472]
[1641446390825,10.02051676,150.4,150.29,34.30820472]
[1641446390826,4.0,150.36,150.29,34.30820472]
[1641446391928,8.64351676,150.37,150.29,34.30820472]
[1641446392126,4.0,150.35,150.29,27.66479]
[1641446392330,4.0,150.34,150.29,27.66479]
[1641446394433,4.64351676,150.37,150.29,27.66479]
[1641446396335,32.30830676,150.38,150.29,27.66479]
[1641446396535,4.64351676,150.38,150.29,27.66479]
[1641446396735,26.30830676,150.41,150.29,27.66479]
[1641446397336,40.46891073,150.4,150.3,8.02705932]
[1641446397937,40.46891073,150.4,150.33,27.66479]
[1641446398337,52.43834559,150.4,150.33,27.66479]
[1641446399839,52.43834559,150.4,150.38,27.66479]
[1641446400539,52.43834559,150.4,150.33,27.66479]
[1641446400741,56.43834559,150.42,150.33,27.66479]
[1641446401141,4.0,150.38,150.26,16.84451827]
[1641446401341,4.0,150.34,150.26,16.84451827]
[1641446401544,7.137,150.34,150.26,16.84451827]
[1641446401941,7.137,150.34,150.27,27.66479]
[1641446402541,68.8019,150.37,150.27,27.66479]
[1641446402741,72.8019,150.37,150.27,27.66479]
[1641446402940,3.31429925,150.33,150.27,27.66479]
[1641446403741,3.31454536,150.36,150.27,27.66479]
[1641446403943,3.31454536,150.36,150.28,6.82317994]
[1641446404642,15.28601229,150.36,150.28,6.82317994]
[1641446405042,9.28601229,150.36,150.28,6.82317994]
[1641446406044,9.28601229,150.36,150.33,27.66479]
[1641446406848,37.15461148,150.39,150.33,27.66479]
[1641446407045,68.6287,150.42,150.33,27.66479]
[1641446408045,100.71751148,150.45,150.4,27.66479]
[1641446408245,37.15461148,150.41,150.4,27.66479]
[1641446409248,37.15461148,150.47,150.4,27.66479]
[1641446409448,37.15461148,150.47,150.4,20.15089864]
[1641446410547,37.15461148,150.47,150.38,27.66479]
[1641446410748,4.0,150.46,150.38,27.66479]
[1641446410949,41.15461148,150.46,150.38,27.66479]
[1641446411347,4.0,150.44,150.36,63.3379]
[1641446411547,41.15461148,150.46,150.36,63.3379]
[1641446411949,37.15461148,150.46,150.36,63.3379]
[1641446412348,37.15461148,150.44,150.37,27.66479]
[1641446416151,41.15461148,150.44,150.37,27.66479]
[1641446416553,37.15461148,150.44,150.37,27.66479]
[1641446417454,37.15461148,150.44,150.36,63.3379]
[1641446417854,37.15461148,150.43,150.36,63.3379]
[1641446418253,44.05961148,150.43,150.35,34.30555767]
[1641446418452,75.72440148,150.43,150.35,6.64076767]
[1641446419053,71.72440148,150.43,150.35,6.64076767]
[1641446419253,4.0,150.42,150.35,6.64076767]
[1641446419654,68.81940148,150.43,150.35,6.64076767]
[1641446420653,64.81940148,150.43,150.35,6.64076767]
[1641446422659,68.81940148,150.43,150.35,6.64076767]
[1641446423057,64.81940148,150.43,150.35,6.64076767]
[1641446423258,68.81940148,150.43,150.35,6.64076767]
[1641446423761,4.0,150.42,150.35,6.64076767]
[1641446424159,64.81940148,150.43,150.35,6.64076767]
[1641446425161,68.81940148,150.43,150.35,6.64076767]
[1641446425561,11.96528711,150.42,150.35,6.64076767]
[1641446426060,4.0,150.38,150.22,6.64628473]
[1641446426260,5.308,150.38,150.22,6.64628473]
[1641446426460,4.0,150.33,150.25,56.53107282]
[1641446426663,27.66479,150.3,150.25,56.53107282]
[1641446427461,31.66479,150.3,150.25,56.53107282]
[1641446427662,31.66479,150.3,150.21,27.66479]
[1641446428064,27.66479,150.3,150.21,27.66479]
[1641446428662,55.32958,150.3,150.2,18.02859526]
[1641446428863,4.0,150.26,150.22,6.82551084]
[1641446429067,10.891,150.26,150.22,6.82551084]
[1641446429466,4.0,150.25,150.22,6.82551084]
[1641446429865,4.0,150.24,150.22,6.82551084]
[1641446430166,4.0,150.23,150.18,6.466]
[1641446430765,27.66479,150.19,150.18,6.466]
[1641446430969,33.31179,150.19,150.18,6.466]
[1641446431165,37.31179,150.19,150.16,18.02859526]
[1641446431367,4.0,150.18,150.16,18.02859526]
[1641446431567,4.0,150.17,150.13,63.35658366]
[1641446431767,37.31179,150.19,150.13,6.82551084]
[1641446432166,4.0,150.16,150.13,6.82551084]
[1641446432366,37.31179,150.19,150.13,6.82551084]
[1641446432565,31.66479,150.19,150.13,6.82551084]
[1641446432766,27.66479,150.15,150.13,6.82551084]
[1641446432966,27.66479,150.15,150.08,6.82551084]
[1641446434169,27.66479,150.15,150.07,18.02859526]
[1641446434369,31.66479,150.15,150.07,18.02859526]
[1641446434768,27.66479,150.12,150.07,18.02859526]
[1641446434968,27.66479,150.12,150.07,11.20308442]
[1641446435168,27.66479,150.15,150.06,4.0]
[1641446435568,27.66479,150.15,150.05,28.68284067]
[1641446435770,27.66479,150.15,150.05,24.68284067]
[1641446435971,27.66479,150.15,150.07,56.53107282]
[1641446436369,69.5912,150.19,150.07,56.53107282]
[1641446436769,97.25599,150.19,150.09,27.66479]
[1641446437070,27.66479,150.19,150.09,33.61179]
[1641446437270,105.15131148,150.25,150.13,6.65048382]
[1641446437472,37.15461148,150.25,150.13,13.39848382]
[1641446437874,63.9517,150.27,150.13,17.39848382]
[1641446438475,63.9517,150.27,150.13,13.39848382]
[1641446438674,63.9517,150.27,150.13,6.65048382]
[1641446438874,4.0,150.23,150.16,27.66479]
[1641446439074,8.433,150.23,150.14,27.66479]
[1641446439274,8.433,150.23,150.13,56.53107282]
[1641446440075,4.433,150.23,150.15,6.82551084]
[1641446440277,8.433,150.23,150.15,6.82551084]
[1641446440879,27.66479,150.2,150.15,6.82551084]
[1641446441077,27.66479,150.2,150.12,18.02859526]
[1641446442678,27.66479,150.25,150.12,18.02859526]
[1641446443079,27.66479,150.22,150.12,18.02859526]
[1641446443681,4.0,150.21,150.12,18.02859526]
[1641446443881,8.56,150.21,150.12,18.02859526]
[1641446444482,4.56,150.21,150.12,18.02859526]
[1641446445083,27.66479,150.19,150.12,18.02859526]
[1641446445682,27.66479,150.19,150.12,19.41261388]
[1641446447285,27.66479,150.22,150.12,19.41261388]
[1641446448185,3.31873336,150.21,150.12,19.41261388]
[1641446448386,8.46573336,150.21,150.12,19.41261388]
[1641446448992,5.147,150.21,150.12,19.41261388]
[1641446449193,27.66479,150.19,150.12,19.41261388]
[1641446450495,31.66479,150.19,150.12,19.41261388]
[1641446450695,36.38879,150.19,150.12,19.41261388]
[1641446450995,32.38879,150.19,150.12,19.41261388]
[1641446451196,32.38879,150.19,150.12,8.20952946]
[1641446451797,27.66479,150.19,150.12,8.20952946]
[1641446452398,27.66479,150.19,150.12,19.41627181]
[1641446452598,33.69379,150.19,150.12,19.41627181]
[1641446453198,33.69379,150.19,150.12,8.20952946]
[1641446454200,33.69379,150.19,150.12,19.41536173]
[1641446455000,27.66479,150.19,150.12,19.41536173]
[1641446455199,27.66479,150.22,150.12,47.08015173]
[1641446455901,27.66479,150.22,150.13,6.82551084]
[1641446456202,27.66479,150.22,150.13,8.20952946]
[1641446456600,27.66479,150.22,150.13,12.20952946]
[1641446456804,31.15461148,150.29,150.16,4.0]
[1641446457002,31.15461148,150.29,150.17,4.0]
[1641446457003,93.02911148,150.29,150.17,4.0]
[1641446457202,52.81940148,150.29,150.18,6.64805212]
[1641446458403,27.66479,150.29,150.18,6.64805212]
[1641446458603,4.70109124,150.26,150.25,4.70109124]
[1641446459604,4.70109124,150.26,150.18,8.03207074]
[1641446459905,4.70109124,150.27,150.19,1.38401862]
[1641446461010,4.70109124,150.27,150.26,4.70059571]
[1641446461708,4.70109124,150.27,150.19,1.38401862]
[1641446462110,4.70109124,150.27,150.19,5.38401862]
[1641446462312,4.70109124,150.27,150.19,1.38401862]
[1641446462710,4.70109124,150.27,150.2,1.38401862]
[1641446462910,4.70109124,150.27,150.2,5.38401862]
[1641446463310,4.70109124,150.27,150.21,27.66479]
[1641446463710,4.70109124,150.28,150.21,29.04880862]
[1641446464212,4.70109124,150.28,150.21,1.38401862]
[1641446464411,3.31522855,150.28,150.27,4.70048845]
[1641446465012,7.31522855,150.28,150.22,8.20952946]
[1641446465212,27.66479,150.23,150.22,8.20952946]
[1641446465413,33.85679,150.23,150.22,6.82551084]
[1641446465614,33.85679,150.23,150.18,18.03134311]
[1641446466616,33.85679,150.23,150.18,6.82551084]
[1641446466819,33.85679,150.23,150.17,8.21019069]
[1641446467618,37.85679,150.23,150.17,8.21019069]
[1641446467917,4.0,150.22,150.17,8.21019069]
[1641446468118,4.0,150.22,150.14,19.41692086]
[1641446469419,27.66479,150.23,150.14,19.41692086]
[1641446469619,20.14165578,150.23,150.14,19.41692086]
[1641446473028,4.0,150.2,150.14,19.41692086]
[1641446473226,6.255,150.2,150.14,19.41692086]
[1641446475329,6.255,150.2,150.14,8.21019069]
[1641446475928,4.0,150.21,150.14,8.21019069]
[1641446476629,20.14165578,150.23,150.14,8.21019069]
[1641446477231,3.31834557,150.22,150.14,8.21019069]
[1641446477430,3.31834557,150.22,150.14,19.41617589]
[1641446477635,8.45034557,150.22,150.14,19.41617589]
[1641446479033,8.45034557,150.22,150.14,8.21019069]
[1641446479234,3.31834557,150.21,150.14,8.21019069]
[1641446481341,4.0,150.18,150.14,9.069e-05]
[1641446481537,4.0,150.15,150.09,56.53107282]
[1641446481738,55.32958,150.1,150.09,56.53107282]
[1641446481936,64.10658,150.1,150.09,56.53107282]
[1641446482139,60.10658,150.1,150.04,94.99245214]
[1641446482537,64.10658,150.1,150.04,94.99245214]
[1641446482740,4.0,150.09,150.02,56.45406645]
[1641446483342,4.0,150.08,150.02,56.45406645]
[1641446483740,27.66479,150.06,150.02,56.45406645]
[1641446483940,33.21679,150.06,150.02,56.45406645]
[1641446484140,5.552,150.06,150.02,56.45406645]
[1641446484341,27.66479,150.1,150.02,56.45406645]
[1641446484742,27.66479,150.1,149.99,6.65668164]
[1641446485542,27.66479,150.1,150.0,4.0]
[1641446485743,27.66479,150.1,150.02,4.0]
[1641446485945,93.57109,150.12,150.01,4.0]
[1641446486143,93.57109,150.12,150.0,31.66479]
[1641446486543,93.57109,150.12,150.0,27.66479]
[1641446486744,98.88909,150.12,150.0,31.66479]
[1641446487245,102.88909,150.12,150.0,42.86225277]
[1641446488645,102.88909,150.12,150.0,38.86225277]
[1641446488844,4.0,150.11,150.0,38.86225277]
[1641446489851,27.66479,150.08,150.0,38.86225277]
[1641446490049,33.53379,150.08,150.0,38.86225277]
[1641446490649,33.53379,150.08,150.0,27.66479]
[1641446490650,37.53379,150.08,150.0,27.66479]
[1641446491249,33.53379,150.08,150.0,27.66479]
[1641446491450,4.0,150.06,149.99,11.19746277]
[1641446491650,4.0,150.05,149.99,11.19746277]
[1641446491850,27.66479,150.03,149.99,11.19746277]
[1641446492050,33.41779,150.03,149.99,11.19746277]
[1641446492751,33.41779,150.03,149.96,27.66479]
[1641446494053,33.41779,150.03,149.95,11.19746277]
[1641446495259,37.41779,150.03,149.95,11.19746277]
[1641446495659,4.0,150.02,149.95,11.19746277]
[1641446495958,37.41779,150.03,149.95,11.19746277]
[1641446496259,4.0,150.02,149.95,11.19746277]
[1641446496459,4.0,149.99,149.95,11.19746277]
[1641446496660,8.667,149.99,149.95,11.19746277]
[1641446496959,8.667,149.99,149.92,83.39027217]
[1641446497159,4.667,149.99,149.92,83.39027217]
[1641446497459,8.667,149.99,149.92,83.39027217]
[1641446497662,4.667,149.99,149.92,83.39027217]
[1641446498059,27.66479,149.97,149.92,83.39027217]
[1641446498359,27.66479,149.97,149.91,27.66479]
[1641446499661,4.0,150.02,149.93,4.0]
[1641446499860,27.66479,150.03,149.95,4.0]
[1641446500067,27.66479,150.08,150.02,6.65446681]
[1641446500263,10.1,150.1,150.02,6.65446681]
[1641446500663,27.66479,150.11,150.05,6.65402402]
[1641446500865,56.48246655,150.16,150.03,4.0]
[1641446501165,56.48246655,150.16,150.06,6.65358129]
[1641446501564,9.414,150.17,150.06,6.65358129]
[1641446501966,4.0,150.15,150.06,6.65358129]
[1641446502166,27.66479,150.14,150.06,27.66479]
[1641446502774,27.66479,150.14,150.04,6.81539746]
[1641446503368,27.66479,150.14,150.06,10.65380265]
[1641446503568,27.66479,150.16,150.1,6.65158973]
[1641446503970,60.48246655,150.22,150.1,6.65158973]
[1641446504170,27.66479,150.2,150.1,34.31637973]
[1641446505069,27.66479,150.2,150.11,6.81539746]
[1641446506069,27.66479,150.2,150.11,18.01286023]
[1641446506670,129.5755,150.24,150.11,18.01286023]
[1641446506871,68.4146,150.27,150.14,4.0]
[1641446507071,68.4146,150.27,150.15,4.0]
[1641446507274,68.4146,150.27,150.14,4.0]
[1641446507472,68.4146,150.27,150.14,10.64982045]
[1641446507672,68.4146,150.27,150.15,4.0]
[1641446507876,77.294,150.29,150.15,4.0]
[1641446508373,39.65211348,150.26,150.18,27.66479]
[1641446508773,4.0,150.22,150.11,18.01286023]
[1641446508975,4.0,150.2,150.11,18.01286023]
[1641446509173,4.0,150.2,150.1,56.48246655]
[1641446509974,4.0,150.19,150.1,56.48246655]
[1641446510175,27.66479,150.14,150.1,56.48246655]
[1641446510476,33.44979,150.14,150.1,56.48246655]
[1641446510774,33.44979,150.14,150.08,18.02371481]
[1641446512075,37.44979,150.14,150.08,18.02371481]
[1641446512274,37.44979,150.14,150.08,11.2021416]
[1641446512475,4.0,150.13,150.07,6.82157321]
[1641446513676,4.0,150.13,150.05,6.82157321]
[1641446515977,61.11458,150.14,150.05,6.82157321]
[1641446516176,4.0,150.06,150.05,6.82157321]
[1641446516376,10.054,150.06,150.05,6.82157321]
[1641446516779,10.054,150.06,150.05,7.321e-05]
[1641446517477,6.054,150.06,150.05,7.321e-05]
[1641446517679,10.054,150.06,150.05,7.321e-05]
[1641446518080,10.054,150.06,150.02,11.2021416]
[1641446518278,4.0,150.04,149.98,11.2021416]
[1641446519180,4.0,150.04,149.96,6.65801125]
[1641446520282,27.66479,150.03,149.96,6.65801125]
[1641446520883,4.0,150.02,149.96,6.65801125]
[1641446521083,4.0,149.99,149.95,83.40071518]
[1641446521283,4.902,149.99,149.95,83.40071518]
[1641446521482,4.0,149.98,149.95,83.40071518]
[1641446521985,4.0,149.98,149.92,1.38080582]
[1641446522384,27.66479,149.96,149.92,1.38080582]
[1641446522584,32.86879,149.96,149.92,1.38080582]
[1641446523186,4.0,149.95,149.92,1.38080582]
[1641446524287,4.0,149.95,149.89,1.38080582]
[1641446528093,27.66479,149.96,149.89,1.38080582]
[1641446530196,20.13030474,149.96,149.89,1.38080582]
[1641446532000,24.13030474,149.96,149.89,1.38080582]
[1641446533000,24.13030474,149.96,149.89,57.86327237]
[1641446534200,20.13030474,149.96,149.89,57.86327237]
[1641446534400,4.0,149.95,149.89,57.86327237]
[1641446534601,8.77,149.95,149.89,57.86327237]
[1641446537103,4.0,149.94,149.89,57.86327237]
[1641446538304,4.0,149.94,149.89,1.38080582]
[1641446539107,4.0,149.94,149.88,8.2007408]
[1641446540208,4.0,149.93,149.88,8.2007408]
[1641446541006,4.0,149.92,149.88,8.2007408]
[1641446541207,9.506,149.92,149.88,8.2007408]
[1641446541415,4.0,149.91,149.88,8.2007408]
[1641446541808,4.0,149.9,149.88,8.2007408]
[1641446542206,4.0,149.89,149.88,8.2007408]
[1641446542406,10.913,149.89,149.88,1.1176408]
[1641446542607,10.913,149.89,149.85,67.68460815]
[1641446542808,34.57779,149.89,149.85,67.68460815]
[1641446543009,34.57779,149.89,149.83,67.68460815]
[1641446543207,38.57779,149.89,149.83,67.68460815]
[1641446543808,34.57779,149.89,149.83,67.68460815]
[1641446544510,34.57779,149.89,149.81,56.48246655]
[1641446546311,6.913,149.89,149.81,56.48246655]
[1641446546511,5.506,149.92,149.81,56.48246655]
[1641446546713,4.70888891,149.93,149.81,56.48246655]
[1641446546912,4.70888891,149.93,149.83,27.66479]
[1641446547313,4.70888891,149.93,149.84,4.0]
[1641446547912,4.70888891,149.95,149.84,60.48246655]
[1641446548114,4.70888891,149.95,149.84,56.48246655]
[1641446548714,4.70888891,149.95,149.88,6.66155947]
[1641446548914,31.66665345,150.02,149.94,27.66479]
[1641446549217,4.71024255,149.97,149.94,33.82179]
[1641446549413,31.66665345,150.04,149.94,33.82179]
[1641446550015,31.66665345,150.04,149.94,27.66479]
[1641446550215,4.0,150.05,149.94,27.66479]
[1641446550617,4.0,150.05,149.94,38.8669316]
[1641446551019,27.66479,150.05,149.94,38.8669316]
[1641446552920,27.66479,150.05,149.97,27.66479]
[1641446553323,4.0,150.09,149.97,27.66479]
[1641446553324,4.0,150.09,149.97,32.68979]
[1641446553521,4.0,150.09,149.99,6.65668164]
[1641446553721,65.4699,150.12,149.99,6.65668164]
[1641446553922,6.65668164,150.16,150.01,4.0]
[1641446554123,4.0,150.14,150.01,4.76]
[1641446554323,66.737,150.15,150.01,4.76]
[1641446554824,62.737,150.15,150.01,4.76]
[1641446555123,27.66479,150.13,150.06,27.66479]
[1641446555723,4.0,150.12,149.99,6.65668164]
[1641446555923,10.65845457,150.12,149.98,64.3945]
[1641446556524,4.0,150.09,149.98,64.3945]
[1641446556723,9.614,150.09,149.98,64.3945]
[1641446556924,27.66479,150.08,149.98,92.05929]
[1641446557326,27.66479,150.08,149.98,27.66479]
[1641446559527,32.34379,150.08,149.98,27.66479]
[1641446560827,36.34379,150.08,149.98,27.66479]
[1641446561229,36.34379,150.08,149.96,27.66479]
[1641446562029,4.0,150.05,149.96,27.66479]
[1641446563030,27.66479,150.04,149.96,27.66479]
[1641446563430,27.66479,150.04,149.97,6.82094221]
[1641446565734,68.3459,150.07,149.97,6.82094221]
[1641446566035,68.3459,150.07,149.99,4.0]
[1641446566237,63.13981293,150.15,149.99,4.0]
[1641446566437,65.4101,150.14,150.01,4.0]
[1641446566636,65.4101,150.14,149.99,4.0]
[1641446566838,65.4101,150.14,150.02,4.0]
[1641446567037,65.4101,150.14,150.07,27.66479]
[1641446567238,84.14725655,150.15,150.07,27.66479]
[1641446567441,12.00531729,150.13,150.07,27.66479]
[1641446567739,6.00531729,150.13,150.07,31.66479]
[1641446567941,27.66479,150.17,150.09,10.65225345]
[1641446568140,27.66479,150.17,150.1,4.0]
[1641446568339,27.66479,150.17,150.11,4.0]
[1641446568540,56.48246655,150.2,150.11,4.0]
[1641446568942,56.48246655,150.2,150.13,27.66479]
[1641446569142,27.66479,150.21,150.13,34.31505269]
[1641446569347,27.66479,150.24,150.13,34.31505269]
[1641446569542,27.66479,150.24,150.13,41.36405269]
[1641446569744,27.66479,150.24,150.13,45.36405269]
[1641446571043,27.66479,150.24,150.13,41.36405269]
[1641446571242,4.0,150.22,150.13,34.31505269]
[1641446571444,4.0,150.17,150.08,56.48246655]
[1641446571642,5.038,150.17,150.08,56.48246655]
[1641446573043,27.66479,150.16,150.07,27.66479]
[1641446573342,37.62525619,150.2,150.07,27.66479]
[1641446574142,41.62525619,150.2,150.07,27.66479]
[1641446574343,4.0,150.2,150.07,27.66479]
[1641446574542,4.0,150.19,150.07,27.66479]
[1641446574943,4.0,150.18,150.07,27.66479]
[1641446575144,27.66479,150.17,150.07,27.66479]
[1641446575442,37.03979,150.17,150.07,27.66479]
[1641446576342,33.03979,150.17,150.07,27.66479]
[1641446576742,27.66479,150.17,150.07,27.66479]
[1641446577143,27.66479,150.17,150.1,27.66479]
[1641446577543,31.66479,150.17,150.1,27.66479]
[1641446578446,4.0,150.17,150.08,11.20274021]
[1641446579046,4.0,150.17,150.1,27.66479]
[1641446579245,27.66479,150.18,150.1,27.66479]
[1641446579446,27.66479,150.2,150.1,27.66479]
[1641446579645,37.62525619,150.21,150.1,34.31660096]
[1641446579845,37.62525619,150.21,150.1,38.31660096]
[1641446580048,37.62525619,150.21,150.1,27.66479]
[1641446580250,37.62525619,150.21,150.13,6.65026269]
[1641446580450,104.63795619,150.25,150.13,6.65026269]
[1641446581047,132.30274619,150.25,150.14,27.66479]
[1641446581248,4.0,150.23,150.14,27.66479]
[1641446582051,4.0,150.22,150.14,27.66479]
[1641446582450,41.62525619,150.22,150.14,27.66479]
[1641446583049,27.66479,150.21,150.1,34.31660096]
[1641446583250,30.9865573,150.21,150.15,1.3823744]
[1641446584451,3.3217673,150.2,150.11,1.3823744]
[1641446584652,4.0,150.18,150.11,1.3823744]
[1641446585053,31.66479,150.15,150.11,1.3823744]
[1641446585252,32.84379,150.15,150.11,1.3823744]
[1641446585452,32.84379,150.15,150.08,1.3823744]
[1641446586557,4.0,150.15,150.08,1.3823744]
[1641446586757,3.3217673,150.17,150.08,1.3823744]
[1641446587054,30.9865573,150.14,150.07,27.66479]
[1641446588458,3.3217673,150.13,150.08,8.20494782]
[1641446590560,19.3198032,150.17,150.08,8.20494782]
[1641446590759,15.3198032,150.17,150.08,12.63594782]
[1641446591161,27.66479,150.16,150.08,12.63594782]
[1641446591460,27.66479,150.16,150.09,1.3823744]
[1641446592560,3.3217673,150.15,150.08,8.20494782]
[1641446593465,27.66479,150.16,150.08,8.20494782]
[1641446594863,3.32295275,150.15,150.08,8.20494782]
[1641446595762,27.66479,150.16,150.08,8.20494782]
[1641446596163,64.7242,150.18,150.08,13.55094782]
[1641446597264,3.32270997,150.15,150.08,13.55094782]
[1641446598267,3.32272729,150.17,150.09,1.3823744]
[1641446599270,27.66479,150.16,150.09,1.3823744]
[1641446600270,4.0,150.12,150.09,1.3823744]
[1641446600473,5.491,150.12,150.08,8.20494782]
[1641446601472,33.15579,150.12,150.08,8.20494782]
[1641446601974,33.15579,150.12,150.08,1.3823744]
[1641446602273,3.32468763,150.11,150.07,27.66479]
[1641446603476,27.66479,150.12,150.07,27.66479]
[1641446603677,27.66479,150.12,150.08,1.38196973]
[1641446604576,27.66479,150.12,150.07,27.66479]
[1641446604776,3.32366806,150.11,150.07,27.66479]
[1641446605375,9.85266806,150.11,150.07,27.66479]
[1641446605580,6.529,150.11,150.04,27.66479]
[1641446605777,6.529,150.11,150.08,1.3819652]
[1641446606576,3.32490121,150.1,150.05,1.38185208]
[1641446606778,3.32490121,150.1,150.05,8.20462648]
[1641446607578,6.529,150.11,150.05,8.20462648]
[1641446608680,3.32529598,150.1,150.02,8.20462648]
[1641446609578,27.66479,150.09,150.02,8.20462648]
[1641446609778,27.66479,150.09,150.06,4.70755974]
[1641446610680,27.66479,150.09,150.02,8.20462648]
[1641446610881,3.32587513,150.08,150.02,8.20462648]
[1641446611687,27.66479,150.09,150.06,4.70752183]
[1641446612682,3.32588848,150.08,150.01,8.20462648]
[1641446613786,27.66479,150.09,150.06,4.70758394]
[1641446614886,3.32586336,150.08,150.01,8.20462648]
[1641446615688,27.66479,150.12,150.01,8.20462648]
[1641446615989,27.66479,150.12,150.03,27.66479]
[1641446616989,3.32487078,150.11,150.09,4.70672793]
[1641446617688,27.66479,150.12,150.04,84.22539329]
[1641446617889,27.66479,150.12,150.06,27.66479]
[1641446618489,37.62525619,150.18,150.06,27.66479]
[1641446618691,37.62525619,150.18,150.06,34.31837129]
[1641446618893,3.32452667,150.11,150.1,4.70644117]
[1641446620191,37.62525619,150.16,150.09,27.66479]
[1641446620393,6.966,150.16,150.09,27.66479]
[1641446621396,27.66479,150.18,150.09,27.66479]
[1641446621593,3.32260269,150.15,150.13,4.7055359]
[1641446621996,3.32260269,150.15,150.13,32.3703259]
[1641446622197,9.3194351,150.17,150.13,32.3703259]
[1641446622595,10.47245619,150.19,150.15,4.0]
[1641446622794,56.48246655,150.27,150.14,4.0]
[1641446622995,56.48246655,150.27,150.15,4.0]
[1641446623195,56.48246655,150.27,150.14,4.0]
[1641446623796,56.48246655,150.27,150.16,4.0]
[1641446623999,56.48246655,150.27,150.2,4.70239161]
[1641446624203,27.66479,150.28,150.2,4.70239161]
[1641446625004,27.66479,150.28,150.19,27.66479]
[1641446626005,27.66479,150.28,150.2,4.70297726]
[1641446627205,27.66479,150.28,150.19,32.36797948]
[1641446627908,27.66479,150.28,150.2,4.70296689]
[1641446628810,27.66479,150.28,150.19,27.66479]
[1641446630010,27.66479,150.28,150.2,4.70286302]
[1641446630711,27.66479,150.28,150.19,27.66479]
[1641446630909,31.66479,150.28,150.19,27.66479]
[1641446631312,27.66479,150.28,150.19,27.66479]
[1641446631713,27.66479,150.28,150.2,4.70302298]
[1641446632113,31.66479,150.28,150.2,4.70302298]
[1641446632713,31.66479,150.28,150.19,27.66479]
[1641446632911,31.66479,150.28,150.19,32.36791707]
[1641446633512,4.0,150.26,150.19,32.36791707]
[1641446633713,4.0,150.25,150.14,62.7412]
[1641446634215,27.66479,150.24,150.14,62.7412]
[1641446634613,27.66479,150.24,150.17,4.70398857]
[1641446635414,4.0,150.23,150.17,4.70398857]
[1641446635614,4.0,150.23,150.16,4.70416127]
[1641446636214,4.0,150.22,150.16,4.70416127]
[1641446636415,10.283,150.22,150.16,4.70416127]
[1641446636614,4.0,150.21,150.13,34.31505269]
[1641446636818,4.0,150.2,150.13,34.31505269]
[1641446637015,4.0,150.17,150.13,27.66479]
[1641446637215,10.539,150.17,150.11,68.569]
[1641446637416,6.539,150.17,150.1,27.66479]
[1641446637616,6.539,150.17,150.14,4.70477668]
[1641446639118,6.539,150.17,150.1,27.66479]
[1641446639319,6.539,150.17,150.13,4.70528732]
[1641446639518,4.0,150.15,150.13,4.70528732]
[1641446639718,4.0,150.14,150.13,8.732e-05]
[1641446640319,4.0,150.14,150.07,64.7962]
[1641446640320,27.66479,150.15,150.07,64.7962]
[1641446640721,27.66479,150.15,150.04,27.66479]
[1641446641220,4.0,150.13,150.04,27.66479]
[1641446641519,10.6,150.13,150.04,27.66479]
[1641446642625,6.6,150.13,150.04,27.66479]
[1641446643526,6.6,150.13,150.05,6.83154567]
[1641446644626,11.9938821,150.14,150.05,6.83154567]
[1641446645026,11.9938821,150.14,150.07,6.65335995]
[1641446645227,11.9938821,150.14,150.05,13.48556969]
[1641446645927,11.9938821,150.18,150.05,18.04679706]
[1641446646228,4.0,150.17,150.05,18.04679706]
[1641446646526,27.66479,150.15,150.05,18.04679706]
[1641446647128,27.66479,150.15,150.05,6.83154567]
[1641446647729,27.66479,150.15,150.07,4.0]
[1641446647928,37.65085554,150.18,150.06,6.65380265]
[1641446648128,65.31564554,150.19,150.07,4.0]
[1641446648429,65.31564554,150.19,150.11,27.66479]
[1641446648629,37.65085554,150.19,150.11,27.66479]
[1641446649028,105.94825554,150.24,150.11,27.66479]
[1641446649830,109.94825554,150.24,150.11,27.66479]